lending/lending_fUSD_20250224
["ID","MTS","AMOUNT","RATE_DAILY","PERIOD"]
[354262569,1740371432329,-60507.25853576,0.0001,2]
[354262571,1740371432338,-150.0,0.00010479,2]
[354262572,1740371432347,-66.79582284,0.00010958,2]
[354262573,1740371432541,-152.36063516,0.00010958,2]
[354262574,1740371432551,-209.88256709,0.00010958,2]
[354262575,1740371432812,-29.78412391,0.00010958,2]
[354262576,1740371432823,-151.833878,0.00010958,2]
[354262577,1740371432833,-152.693179,0.00010958,2]
[354262579,1740371432844,-151.833866,0.00010958,2]
[354262581,1740371432855,-152.693174,0.00010958,2]
[354262583,1740371432866,-164.185753,0.00010958,2]
[354262584,1740371432876,-157.094355,0.00010958,2]
[354262585,1740371432887,-5880.91530374,0.00011,2]
[354262586,1740371432905,-150.0,0.00011,2]
[354262588,1740371432916,-219.156458,0.00011041,2]
[354262590,1740371432926,-239.666691,0.00011041,2]
[354262592,1740371432939,-219.156458,0.00011123,2]
[354262593,1740371432950,-239.666691,0.00011123,2]
[354262594,1740371432962,-219.156458,0.00011205,2]
[354262596,1740371432973,-239.666691,0.00011205,2]
[354262598,1740371432985,-219.156458,0.00011287,2]
[354262600,1740371432996,-143.98216065,0.00011287,2]
[354262614,1740371438330,-95.68453035,0.00011287,2]
[354262615,1740371438339,-219.156458,0.00011369,2]
[354262616,1740371438348,-239.666691,0.00011369,2]
[354262617,1740371438357,-1518.65,0.0001287,2]
[354262618,1740371438367,-343.0,0.000134,5]
[354262619,1740371438376,-1423.6499925,0.00014,4]
[354262620,1740371438385,-150.0,0.00014799,2]
[354262621,1740371438398,-250.0,0.00015034,2]
[354262622,1740371438407,-1518.65,0.00015134,2]
[354262623,1740371438416,-4023.63,0.00015153,2]
[354262624,1740371438425,-1014.65,0.00015276,2]
[354262625,1740371438435,-1500.0,0.0001541,2]
[354262626,1740371438444,-500.0,0.0001541,2]
[354262627,1740371438453,-200.0,0.0001543,2]
[354262628,1740371438462,-408.73,0.00015485,2]
[354262629,1740371438471,-231.72,0.00015544,2]
[354262630,1740371438484,-788.73,0.0001555,2]
[354262631,1740371438494,-167.55,0.00015979,2]
[354262632,1740371438503,-1000.0,0.00015996,2]
[354262633,1740371438512,-1100.0,0.00016,6]
[354262634,1740371438522,-3953.2226,0.00016338,2]
[354262635,1740371438535,-992.58,0.00016413,2]
[354262636,1740371438544,-151.47625918,0.00016419,2]
[354262637,1740371438554,-725.4123,0.0001642,2]
[354262638,1740371438563,-500.0,0.00016438,2]
[354262639,1740371438573,-500.0,0.00016438,7]
[354262640,1740371438582,-500.0,0.00016438,2]
[354262641,1740371438591,-260.2842714,0.00016438,2]
[354262642,1740371438601,-500.0,0.00016438,2]
[354262643,1740371438610,-500.0,0.00016438,2]
[354262644,1740371438620,-500.0,0.00016438,2]
[354262645,1740371438629,-500.0,0.00016438,2]
[354262646,1740371438641,-359.64204026,0.00016438,2]
[354262647,1740371438651,-500.0,0.00016438,2]
[354262648,1740371438660,-500.0,0.00016438,2]
[354262650,1740371438669,-500.0,0.00016438,2]
[354262652,1740371438678,-500.0,0.00016438,2]
[354262654,1740371438687,-500.0,0.00016438,2]
[354262656,1740371438697,-500.0,0.00016438,2]
[354262658,1740371438706,-500.0,0.00016438,2]
[354262660,1740371438715,-500.0,0.00016438,2]
[354262662,1740371438724,-500.0,0.00016438,2]
[354262664,1740371438733,-500.0,0.00016438,2]
[354262666,1740371438743,-500.0,0.00016438,2]
[354262668,1740371438752,-500.0,0.00016438,2]
[354262670,1740371438761,-500.0,0.00016438,2]
[354262672,1740371438771,-500.0,0.00016438,2]
[354262674,1740371438780,-500.0,0.00016438,2]
[354262677,1740371438789,-500.0,0.00016438,2]
[354262679,1740371438798,-500.0,0.00016438,2]
[354262681,1740371438808,-584.54,0.00016438,2]
[354262682,1740371438817,-500.0,0.00016438,2]
[354262683,1740371438827,-500.0,0.00016438,2]
[354262684,1740371438836,-500.0,0.00016438,2]
[354262685,1740371438845,-500.0,0.00016438,2]
[354262686,1740371438854,-500.0,0.00016438,2]
[354262687,1740371438864,-500.0,0.00016438,2]
[354262688,1740371438873,-519.31,0.00016438,2]
[354262689,1740371438882,-628.85,0.00016438,2]
[354262690,1740371438895,-671.01,0.00016438,2]
[354262691,1740371438904,-682.04,0.00016438,2]
[354262692,1740371438913,-691.8,0.00016438,2]
[354262693,1740371438923,-500.0,0.00016438,2]
[354262694,1740371438932,-500.0,0.00016438,2]
[354262695,1740371438941,-500.0,0.00016438,2]
[354262696,1740371438950,-500.0,0.00016438,2]
[354262697,1740371438959,-500.0,0.00016438,2]
[354262698,1740371438968,-699.62,0.00016438,2]
[354262699,1740371438978,-500.0,0.00016438,2]
[354262700,1740371438987,-500.0,0.00016438,2]
[354262701,1740371438996,-529.76,0.00016438,2]
[354262702,1740371439005,-516.01,0.00016438,2]
[354262703,1740371439015,-500.0,0.00016438,2]
[354262704,1740371439024,-500.0,0.00016438,2]
[354262705,1740371439033,-500.0,0.00016438,2]
[354262706,1740371439043,-500.0,0.00016438,2]
[354262707,1740371439052,-500.0,0.00016438,2]
[354262708,1740371439061,-500.0,0.00016438,2]
[354262709,1740371439071,-500.0,0.00016438,2]
[354262710,1740371439080,-500.0,0.00016438,2]
[354262711,1740371439089,-500.0,0.00016438,2]
[354262712,1740371439099,-500.0,0.00016438,2]
[354262713,1740371439108,-500.0,0.00016438,2]
[354262714,1740371439118,-500.0,0.00016438,2]
[354262715,1740371439127,-500.0,0.00016438,2]
[354262716,1740371439136,-500.0,0.00016438,2]
[354262717,1740371439149,-500.0,0.00016438,2]
[354262718,1740371439158,-500.0,0.00016438,2]
[354262719,1740371439168,-500.0,0.00016438,2]
[354262720,1740371439177,-511.96,0.00016438,2]
[354262721,1740371439187,-500.0,0.00016438,2]
[354262722,1740371439196,-500.0,0.00016438,2]
[354262723,1740371439206,-500.0,0.00016438,2]
[354262724,1740371439215,-501.0,0.00016438,2]
[354262725,1740371439225,-356.91908144,0.000165,2]
[354262726,1740371439234,-281.77,0.00016509,2]
[354262727,1740371439243,-1045.37633189,0.00016512,2]
[354262728,1740371439253,-500.0,0.00016518,2]
[354262729,1740371439262,-683.57,0.00016518,2]
[354262730,1740371439271,-500.0,0.00016518,2]
[354262731,1740371439280,-500.0,0.00016518,2]
[354262732,1740371439290,-1713.35,0.00016518,2]
[354262733,1740371439299,-502.82462378,0.00016519,2]
[354262734,1740371439308,-628.15844764,0.00016519,2]
[354262735,1740371439317,-500.0,0.00016519,2]
[354262736,1740371439327,-500.0,0.00016519,2]
[354262737,1740371439336,-500.0,0.00016519,2]
[354262738,1740371439346,-500.0,0.00016519,2]
[354262739,1740371439355,-500.0,0.00016519,2]
[354262740,1740371439365,-539.66,0.00016519,2]
[354262741,1740371439376,-604.01,0.00016519,2]
[354262742,1740371439385,-500.0,0.00016519,2]
[354262743,1740371439399,-500.0,0.00016519,2]
[354262744,1740371439409,-500.0,0.00016519,2]
[354262745,1740371439419,-555.49,0.00016519,2]
[354262746,1740371439428,-362.12,0.00016519,2]
[354262747,1740371439437,-500.0,0.00016519,2]
[354262748,1740371439448,-500.0,0.00016519,2]
[354262749,1740371439458,-500.0,0.00016519,2]
[354262750,1740371439467,-500.0,0.00016519,2]
[354262751,1740371439479,-500.0,0.00016519,2]
[354262752,1740371439489,-500.0,0.00016519,2]
[354262753,1740371439498,-500.0,0.00016519,2]
[354262754,1740371439507,-500.0,0.00016519,2]
[354262755,1740371439516,-500.0,0.00016519,2]
[354262756,1740371439527,-500.0,0.00016519,2]
[354262757,1740371439538,-500.0,0.00016519,2]
[354262758,1740371439547,-500.0,0.00016519,2]
[354262759,1740371439556,-500.0,0.00016519,2]
[354262760,1740371439566,-500.0,0.00016519,2]
[354262761,1740371439575,-500.0,0.00016519,2]
[354262762,1740371439584,-500.0,0.00016519,2]
[354262763,1740371439594,-517.41684047,0.00016519,2]
[354262764,1740371439603,-500.0,0.00016519,2]
[354262765,1740371439613,-219.156458,0.00016519,2]
[354262766,1740371439623,-500.0,0.00016519,2]
[354262767,1740371439632,-500.0,0.00016519,2]
[354262768,1740371439645,-239.666691,0.00016519,2]
[354262769,1740371439655,-500.0,0.00016519,2]
[354262770,1740371439664,-354.32182127,0.00016519,2]
[354262771,1740371439674,-500.0,0.00016519,2]
[354262772,1740371439683,-500.0,0.00016519,2]
[354262773,1740371439692,-500.0,0.00016519,2]
[354262774,1740371439701,-500.0,0.00016519,2]
[354262775,1740371439711,-500.0,0.00016519,2]
[354262776,1740371439721,-500.0,0.00016519,2]
[354262777,1740371439731,-500.0,0.00016519,2]
[354262778,1740371439741,-500.0,0.00016519,2]
[354262779,1740371439750,-500.0,0.00016519,2]
[354262780,1740371439759,-500.0,0.00016519,2]
[354262781,1740371439768,-536.07,0.00016519,2]
[354262782,1740371439777,-500.0,0.00016519,2]
[354262783,1740371439787,-500.0,0.00016519,2]
[354262784,1740371439796,-500.0,0.00016519,2]
[354262785,1740371439805,-500.0,0.00016519,2]
[354262786,1740371439814,-500.0,0.00016519,2]
[354262787,1740371439823,-500.0,0.00016519,2]
[354262788,1740371439833,-500.0,0.00016519,2]
[354262789,1740371439843,-500.0,0.00016519,2]
[354262790,1740371439852,-500.0,0.00016519,2]
[354262791,1740371439864,-500.0,0.00016519,2]
[354262792,1740371439873,-500.0,0.00016519,2]
[354262793,1740371439883,-500.0,0.00016519,2]
[354262794,1740371439896,-671.66,0.00016519,2]
[354262795,1740371439905,-505.08,0.00016519,2]
[354262796,1740371439914,-500.0,0.00016519,2]
[354262797,1740371439924,-500.0,0.00016519,2]
[354262798,1740371439934,-500.0,0.00016519,2]
[354262799,1740371439943,-500.0,0.00016519,2]
[354262800,1740371439953,-500.0,0.00016519,2]
[354262801,1740371439962,-1262.84,0.00016519,2]
[354262802,1740371439972,-500.0,0.00016519,2]
[354262803,1740371439981,-1241.3,0.00016519,2]
[354262804,1740371439991,-500.0,0.00016519,2]
[354262805,1740371440000,-3408.19,0.00016519,2]
[354262806,1740371440010,-500.0,0.00016519,2]
[354262807,1740371440020,-504.45,0.00016519,2]
[354262808,1740371440029,-500.0,0.00016519,2]
[354262809,1740371440038,-505.55373877,0.00016519,2]
[354262810,1740371440048,-1418.5,0.00016519,2]
[354262811,1740371440060,-500.0,0.00016519,2]
[354262812,1740371440069,-500.0,0.00016519,2]
[354262813,1740371440078,-411.34715888,0.00016519,2]
[354262814,1740371440087,-3016.03,0.00016519,2]
[354262816,1740371440097,-500.0,0.00016519,2]
[354262818,1740371440106,-1241.22,0.00016519,2]
[354262819,1740371440115,-1710.76,0.00016519,2]
[354262820,1740371440124,-617.96,0.00016519,2]
[354262821,1740371440134,-991.37,0.00016519,2]
[354262822,1740371440146,-500.0,0.00016519,2]
[354262824,1740371440155,-988.56,0.00016519,2]
[354262825,1740371440164,-1058.93,0.00016519,2]
[354262826,1740371440173,-753.54,0.00016519,2]
[354262827,1740371440182,-1288.21,0.00016519,2]
[354262828,1740371440192,-1083.1,0.00016519,2]
[354262829,1740371440201,-735.54,0.00016519,2]
[354262831,1740371440210,-1139.7,0.00016519,2]
[354262832,1740371440220,-840.2,0.00016519,2]
[354262833,1740371440229,-273.12094789,0.00016519,2]
[354262834,1740371440239,-841.15,0.00016519,2]
[354262835,1740371440249,-592.07,0.00016519,2]
[354262836,1740371440259,-1743.28,0.00016519,2]
[354262837,1740371440269,-673.14,0.00016519,2]
[354262838,1740371440279,-917.74,0.00016519,2]
[354262839,1740371440289,-500.0,0.00016519,2]
[354262840,1740371440299,-2693.96,0.00016519,2]
[354262841,1740371440308,-642.58,0.00016519,2]
[354262842,1740371440317,-525.85,0.00016519,2]
[354262843,1740371440327,-500.0,0.00016519,2]
[354262844,1740371440336,-500.0,0.00016519,2]
[354262845,1740371440345,-1027.79,0.00016519,2]
[354262846,1740371440354,-1449.87,0.00016519,2]
[354262847,1740371440365,-936.34,0.00016519,2]
[354262848,1740371440375,-500.0,0.00016519,2]
[354262849,1740371440586,-500.0,0.00016519,2]
[354262850,1740371440595,-500.0,0.00016519,2]
[354262851,1740371440605,-500.0,0.00016519,2]
[354262852,1740371440614,-2229.42,0.00016519,2]
[354262853,1740371440623,-988.74,0.00016519,2]
[354262854,1740371440633,-916.6,0.00016519,2]
[354262855,1740371440645,-540.9,0.00016519,2]
[354262856,1740371440655,-500.0,0.00016519,2]
[354262857,1740371440665,-631.01,0.00016519,2]
[354262858,1740371440674,-691.05,0.00016519,2]
[354262859,1740371440684,-1002.74,0.00016519,2]
[354262860,1740371440694,-1282.57,0.00016519,2]
[354262861,1740371440704,-500.0,0.00016519,2]
[354262862,1740371440715,-919.87,0.00016519,2]
[354262863,1740371440725,-1097.16,0.00016519,2]
[354262864,1740371440735,-985.08,0.00016519,2]
[354262865,1740371440746,-760.18,0.00016519,2]
[354262866,1740371440756,-550.72,0.00016519,2]
[354262867,1740371440768,-1107.4,0.00016519,2]
[354262869,1740371440778,-962.53,0.00016519,2]
[354262871,1740371440788,-1780.55,0.00016519,2]
[354262873,1740371440798,-763.41,0.00016519,2]
[354262875,1740371440807,-529.67,0.00016519,2]
[354262877,1740371440817,-1454.4,0.00016519,2]
[354262878,1740371440826,-1571.43,0.00016519,2]
[354262879,1740371440836,-724.6,0.00016519,2]
[354262880,1740371440845,-1293.87,0.00016519,2]
[354262881,1740371440854,-500.0,0.00016519,2]
[354262882,1740371440863,-1543.55,0.00016519,2]
[354262883,1740371440872,-686.7,0.00016519,2]
[354262884,1740371440881,-500.65675347,0.00016519,2]
[354262886,1740371440895,-1201.16,0.00016519,2]
[354262888,1740371440907,-500.0,0.00016519,2]
[354262889,1740371440916,-603.19,0.00016519,2]
[354262890,1740371440926,-628.44,0.00016519,2]
[354262891,1740371440936,-1609.97,0.00016519,2]
[354262892,1740371440945,-500.0,0.00016519,2]
[354262893,1740371440954,-575.35,0.00016519,2]
[354262894,1740371440963,-1381.03,0.00016519,2]
[354262895,1740371440973,-893.6,0.00016519,2]
[354262896,1740371440982,-500.0,0.00016519,2]
[354262897,1740371440992,-1890.15,0.00016519,2]
[354262898,1740371441001,-1256.7,0.00016519,2]
[354262899,1740371441010,-1068.08,0.00016519,2]
[354262900,1740371441019,-540.65,0.00016519,2]
[354262901,1740371441028,-918.13,0.00016519,2]
[354262902,1740371441038,-500.0,0.00016519,2]
[354262903,1740371441047,-3214.9,0.00016519,2]
[354262904,1740371441056,-1577.51,0.00016519,2]
[354262905,1740371441065,-1451.74,0.00016519,2]
[354262906,1740371441074,-500.0,0.00016519,2]
[354262907,1740371441083,-500.0,0.00016519,2]
[354262908,1740371441093,-500.0,0.00016519,2]
[354262909,1740371441102,-1033.47,0.00016519,2]
[354262910,1740371441111,-500.0,0.00016519,2]
[354262911,1740371441121,-1177.1,0.00016519,2]
[354262912,1740371441131,-1278.93,0.00016519,2]
[354262913,1740371441140,-1588.57,0.00016519,2]
[354262914,1740371441154,-843.63,0.00016519,2]
[354262915,1740371441163,-500.0,0.00016519,2]
[354262916,1740371441172,-1599.61,0.00016519,2]
[354262917,1740371441182,-996.91,0.00016519,2]
[354262918,1740371441191,-2019.74,0.00016519,2]
[354262919,1740371441201,-1759.15,0.00016519,2]
[354262920,1740371441211,-893.58,0.00016519,2]
[354262921,1740371441220,-500.0,0.00016519,2]
[354262922,1740371441231,-1790.75,0.00016519,2]
[354262923,1740371441241,-944.3,0.00016519,2]
[354262924,1740371441250,-542.93,0.00016519,2]
[354262925,1740371441260,-2121.59,0.00016519,2]
[354262926,1740371441269,-1204.98,0.00016519,2]
[354262927,1740371441278,-500.0,0.00016519,2]
[354262928,1740371441287,-4903.99,0.00016519,2]
[354262929,1740371441297,-1254.18,0.00016519,2]
[354262930,1740371441305,-500.0,0.00016519,2]
[354262931,1740371441315,-538.01,0.00016519,2]
[354262932,1740371441324,-500.0,0.00016519,2]
[354262933,1740371441333,-500.0,0.00016519,2]
[354262934,1740371441342,-736.82,0.00016519,2]
[354262935,1740371441351,-500.0,0.00016519,2]
[354262936,1740371441361,-776.77,0.00016519,2]
[354262937,1740371441370,-500.0,0.00016519,2]
[354262938,1740371441380,-500.0,0.00016519,2]
[354262939,1740371441389,-1721.48,0.00016519,2]
[354262940,1740371441404,-1230.91,0.00016519,2]
[354262941,1740371441412,-500.0,0.00016519,2]
[354262942,1740371441422,-2125.52,0.00016519,2]
[354262943,1740371441431,-500.0,0.00016519,2]
[354262944,1740371441441,-1365.11,0.00016519,2]
[354262945,1740371441450,-500.0,0.00016519,2]
[354262946,1740371441460,-500.0,0.0001652,2]
[354262947,1740371441469,-500.0,0.0001652,2]
[354262948,1740371441481,-500.0,0.0001652,2]
[354262949,1740371441490,-500.0,0.0001652,2]
[354262950,1740371441499,-500.0,0.0001652,2]
[354262951,1740371441507,-500.0,0.0001652,2]
[354262952,1740371441517,-500.0,0.0001652,2]
[354262953,1740371441529,-500.0,0.0001652,2]
[354262954,1740371441540,-500.0,0.0001652,2]
[354262955,1740371441550,-500.0,0.0001652,2]
[354262956,1740371441561,-500.0,0.0001652,2]
[354262957,1740371441572,-500.0,0.0001652,2]
[354262958,1740371441582,-500.0,0.0001652,2]
[354262959,1740371441593,-500.0,0.0001652,2]
[354262960,1740371441603,-500.0,0.0001652,2]
[354262961,1740371441613,-168.82580467,0.0001652,2]
[354262962,1740371441622,-500.0,0.0001652,2]
[354262963,1740371441633,-500.0,0.0001652,2]
[354262964,1740371441648,-500.0,0.0001652,2]
[354262965,1740371441658,-500.0,0.0001652,2]
[354262966,1740371441668,-500.0,0.0001652,2]
[354262967,1740371441677,-584.54,0.0001652,2]
[354262968,1740371441687,-500.0,0.0001652,2]
[354262969,1740371441697,-500.0,0.0001652,2]
[354262970,1740371441707,-500.0,0.0001652,2]
[354262971,1740371441717,-519.31,0.0001652,2]
[354262972,1740371441726,-628.85,0.0001652,2]
[354262973,1740371441735,-671.01,0.0001652,2]
[354262974,1740371441745,-682.04,0.0001652,2]
[354262975,1740371441754,-691.8,0.0001652,2]
[354262976,1740371441763,-500.0,0.0001652,2]
[354262977,1740371441772,-500.0,0.0001652,2]
[354262978,1740371441782,-500.0,0.0001652,2]
[354262979,1740371441790,-500.0,0.0001652,2]
[354262980,1740371441800,-500.0,0.0001652,2]
[354262981,1740371441809,-699.62,0.0001652,2]
[354262982,1740371441817,-500.0,0.0001652,2]
[354262983,1740371441827,-500.0,0.0001652,2]
[354262984,1740371441836,-529.76,0.0001652,2]
[354262985,1740371441845,-516.01,0.0001652,2]
[354262986,1740371441855,-500.0,0.0001652,2]
[354262987,1740371441864,-500.0,0.0001652,2]
[354262988,1740371441873,-500.0,0.0001652,2]
[354262989,1740371441883,-500.0,0.0001652,2]
[354262990,1740371441894,-500.0,0.0001652,2]
[354262991,1740371441904,-500.0,0.0001652,2]
[354262992,1740371441913,-500.0,0.0001652,2]
[354262993,1740371441922,-500.0,0.0001652,2]
[354262994,1740371441931,-500.0,0.0001652,2]
[354262995,1740371441940,-500.0,0.0001652,2]
[354262996,1740371441949,-500.0,0.0001652,2]
[354262997,1740371441958,-500.0,0.0001652,2]
[354262998,1740371441967,-500.0,0.0001652,2]
[354262999,1740371441976,-500.0,0.0001652,2]
[354263000,1740371441985,-500.0,0.0001652,2]
[354263001,1740371441994,-511.96,0.0001652,2]
[354263002,1740371442003,-500.0,0.0001652,2]
[354263003,1740371442012,-500.0,0.0001652,2]
[354263004,1740371442021,-500.0,0.0001652,2]
[354263005,1740371442030,-500.0,0.00016566,2]
[354263006,1740371442040,-500.0,0.00016566,2]
[354263007,1740371442049,-281.77,0.0001659,2]
[354263008,1740371442058,-622.92837995,0.00016598,7]
[354263009,1740371442067,-137086.14177828,0.000166,4]
[354263010,1740371442297,-9503.5993339,0.000166,4]
[354263011,1740371442308,-447.24934852,0.000166,4]
[354263012,1740371442319,-10837.91081619,0.000166,4]
[354263013,1740371442330,-8257.50663155,0.000166,4]
[354263014,1740371442351,-11092.87603935,0.000166,4]
[354263015,1740371442362,-419.99720225,0.000166,4]
[354263016,1740371442373,-449.35704933,0.000166,4]
[354263017,1740371442384,-1660.26071363,0.000166,4]
[354263018,1740371442400,-273.83336375,0.000166,4]
[354263019,1740371442416,-420.7769476,0.00016518,2]
[354263020,1740371442428,-610.22697178,0.00016518,2]
[354263021,1740371442696,-322.78608062,0.00016518,2]
[354263022,1740371442705,-578.15810826,0.00016518,2]
[354263023,1740371442715,-500.0,0.00016519,2]
[354263024,1740371442724,-260971.49340728,0.000166,4]
[354263025,1740371442735,-37233.58069496,0.000166,4]
[354263026,1740371442756,-12034.848552,0.000166,4]
[354263027,1740371442767,-16000.000003,0.000166,4]
[354263028,1740371442792,-495.68719811,0.000166,4]
[354263029,1740371442803,-2865.5,0.000166,4]
[354263030,1740371442814,-1728.77262585,0.000166,4]
[354263031,1740371442825,-493.98587737,0.000166,4]
[354263043,1740371443271,-1344.80486468,0.000166,4]
[354263045,1740371443434,-2390.7378954,0.000166,4]
[354263046,1740371443491,-476.68163129,0.000166,4]
[354263047,1740371443506,-254.39513532,0.000166,4]
[354263050,1740371443561,-7887.99721717,0.000166,4]
[354263073,1740371446291,-500.0,0.00016518,2]
[354263075,1740371446301,-1382.57,0.00016519,2]
[354263076,1740371446311,-504.815,0.00016519,2]
[354263077,1740371446348,-684.765,0.00016519,2]
[354263078,1740371446359,-18417.2349972,0.000166,4]
[354263079,1740371446371,-157015.98877253,0.000166,4]
[354263080,1740371446410,-743.77510132,0.000166,4]
[354263081,1740371446463,-608.83533071,0.000166,4]
[354263086,1740371888348,241.89,8.767e-05,2]
[354263088,1740372316547,931.11660881,0.0002,120]
[354263089,1740372325918,931.01,0.0002,120]
[354263098,1740372631531,-158.568017,0.00010958,2]
[354263099,1740372631541,-251.371413,0.00010958,2]
[354263100,1740372631550,-352.141376,0.00010958,2]
[354263101,1740372631560,-150.0,0.00011014,2]
[354263102,1740372631569,-251.371413,0.00011041,2]
[354263103,1740372631578,-352.141376,0.00011041,2]
[354263104,1740372631587,-251.371413,0.00011123,2]
[354263105,1740372631596,-352.141376,0.00011123,2]
[354263106,1740372631605,-251.371413,0.00011205,2]
[354263107,1740372631614,-352.141376,0.00011205,2]
[354263108,1740372631623,-251.371413,0.00011287,2]
[354263109,1740372631632,-352.141376,0.00011287,2]
[354263110,1740372631642,-251.371413,0.00011369,2]
[354263111,1740372631651,-352.141376,0.00011369,2]
[354263112,1740372631660,-833.655249,0.0001203,2]
[354263113,1740372631671,-852.08,0.0001203,2]
[354263114,1740372631687,-4659.94789649,0.0001203,2]
[354263115,1740372631696,-5000.0,0.0001203,2]
[354263116,1740372631705,-500.0,0.00012054,2]
[354263117,1740372631714,-150.0,0.00012054,2]
[354263118,1740372631723,-1563.66,0.00012676,2]
[354263119,1740372631732,-550.0,0.00013,2]
[354263120,1740372631741,-3231.080259,0.00014436,2]
[354263121,1740372631751,-8725.1442772,0.00014496,2]
[354263122,1740372631766,-15174.8557228,0.00014496,2]
[354263123,1740372631775,-500.0,0.00014509,2]
[354263124,1740372631784,-150.0,0.00014527,2]
[354263125,1740372631793,-2751.0,0.00014548,2]
[354263126,1740372631803,-244.09,0.00014548,2]
[354263127,1740372631812,-165.1,0.00014586,2]
[354263128,1740372631821,-2000.0,0.00014631,2]
[354263129,1740372631830,-300.0,0.00014779,2]
[354263130,1740372631839,-3984.0,0.00014779,2]
[354263131,1740372631849,-250.0,0.00014823,2]
[354263132,1740372631860,-920.03,0.00014898,2]
[354263133,1740372631869,-1563.66,0.0001494,2]
[354263134,1740372631879,-600.0,0.00015,2]
[354263135,1740372631888,-1500.0,0.00015151,2]
[354263136,1740372631898,-150.0,0.00015214,2]
[354263137,1740372631907,-150.0,0.00015214,2]
[354263138,1740372631916,-150.0,0.00015214,2]
[354263139,1740372631926,-150.0,0.00015214,2]
[354263140,1740372631937,-532.67,0.00015266,2]
[354263141,1740372631946,-300.0,0.00015266,2]
[354263142,1740372631956,-150.0,0.00015355,2]
[354263143,1740372631965,-1000.0,0.00015362,2]
[354263144,1740372631974,-150.0,0.00015383,2]
[354263145,1740372631983,-150.0,0.00015495,2]
[354263146,1740372631992,-241.89,0.00015516,2]
[354263147,1740372632001,-394.36,0.00015516,2]
[354263148,1740372632010,-601.58607981,0.00015536,2]
[354263149,1740372632019,-150.0,0.00015552,2]
[354263150,1740372632028,-150.0,0.00015552,2]
[354263152,1740372632037,-12866.97052192,0.00015552,2]
[354263154,1740372632058,-1129.74947808,0.00015552,2]
[354263155,1740372632067,-150.0,0.00015636,2]
[354263156,1740372632076,-150.0,0.00015721,2]
[354263157,1740372632085,-200.0,0.00015729,2]
[354263159,1740372632094,-1000.0,0.00015737,2]
[354263161,1740372632103,-150.0,0.00015777,2]
[354263163,1740372632112,-150.0,0.0001589,2]
[354263165,1740372632122,-150.0,0.0001589,2]
[354263168,1740372632131,-290.32528301,0.000159,2]
[354263171,1740372632140,-150.0,0.00015918,2]
[354263174,1740372632149,-421.98189591,0.00016,5]
[354263177,1740372632160,-164.88,0.00016051,2]
[354263180,1740372632169,-150.0,0.00016059,2]
[354263183,1740372632178,-150.0,0.00016059,2]
[354263185,1740372632187,-150.0,0.00016059,2]
[354263187,1740372632197,-150.0,0.000162,2]
[354263190,1740372632206,-150.0,0.00016228,2]
[354263193,1740372632215,-150.0,0.00016228,2]